bitfinex-derivatives/quotes_ETHF0:USTF0_20251021
["timestamp","ask_amount","ask_price","bid_price","bid_amount"]
[1761037329922,0.22996661,3864.6,3864.5,1.36721496]
[1761037330119,0.00186661,3864.6,3864.5,1.36721496]
[1761037333227,0.00186661,3864.6,3864.5,2.75305388]
[1761037334921,0.00186661,3864.6,3864.5,10.59021496]
[1761037335427,0.00186661,3864.6,3864.5,11.97605388]
[1761037339124,1.23271,3865.7,3865.6,0.7849]
[1761037339433,0.2195,3866.0,3865.9,0.2278]
[1761037339623,0.90968,3866.0,3865.9,0.7849]
[1761037339824,1.23268,3866.0,3865.9,0.3425]
[1761037340126,1.2327,3865.8,3865.7,0.69331]
[1761037340425,0.4442,3865.8,3865.7,0.90791]
[1761037340628,0.9097,3865.8,3865.7,1.25041]
[1761037340823,0.4442,3865.8,3865.7,1.25041]
[1761037341024,0.2195,3865.8,3865.7,1.25041]
[1761037341325,0.22240446,3866.0,3865.9,1.25039]
[1761037341526,1.23558446,3866.0,3865.9,0.7849]
[1761037341727,1.23271,3865.7,3865.6,0.69333]
[1761037341928,1.23271,3865.7,3865.6,0.90793]
[1761037342323,0.90971,3865.7,3865.6,1.25043]
[1761037342841,1.23271,3865.7,3865.6,1.25043]
[1761037343429,0.4442,3865.7,3865.6,1.25043]
[1761037344724,1.23271,3865.7,3865.6,0.46553]
[1761037345031,0.7672,3865.7,3865.6,1.25043]
[1761037345533,1.23277,3865.2,3865.1,1.96609255]
[1761037345727,0.2195,3865.2,3865.1,1.25049]
[1761037345933,0.68505,3865.4,3865.3,1.25046]
[1761037346637,0.2195,3865.4,3865.3,1.25046]
[1761037346938,1.23275,3865.4,3865.3,1.25046]
[1761037347123,1.23275,3865.4,3865.3,0.7849]
[1761037347328,1.23275,3865.4,3865.3,0.3425]
[1761037347636,1.23277,3865.3,3865.2,0.5703]
[1761037348531,0.433,3865.3,3865.2,1.25047]
[1761037348735,0.7713,3865.3,3865.2,1.25047]
[1761037348928,1.23686,3865.3,3865.2,0.7849]
[1761037349136,1.23686,3865.3,3865.2,0.5703]
[1761037349532,1.23686,3865.3,3865.1,0.46558]
[1761037349738,1.23687,3865.2,3865.1,0.79768]
[1761037350343,1.23687,3865.2,3865.1,0.5599]
[1761037350636,1.23687,3865.2,3865.1,1.02549]
[1761037351340,1.23687,3865.2,3865.1,0.5599]
[1761037355535,1.23687,3865.2,3865.1,0.3321]
[1761037355732,0.1193,3865.5,3864.9,0.46561]
[1761037355733,0.8986,3865.0,3864.9,0.3321]
[1761037355929,0.8986,3865.0,3864.9,0.7871]
[1761037356344,1.2369,3865.0,3864.9,0.7871]
[1761037357850,1.2369,3865.0,3864.9,0.5599]
[1761037358547,1.16388,3865.4,3864.6,0.69344]
[1761037358548,1.23693,3864.7,3864.6,0.69344]
[1761037358739,1.23693,3864.7,3864.6,0.92064]
[1761037358939,0.7713,3864.7,3864.6,0.92065]
[1761037359136,1.23691,3865.0,3864.9,0.7871]
[1761037360341,1.23691,3865.0,3864.9,0.5599]
[1761037360542,0.89863,3864.8,3864.7,0.5599]
[1761037361244,1.23693,3864.8,3864.7,0.5599]
[1761037362342,0.433,3864.8,3864.7,1.25273]
[1761037362533,0.2116,3864.8,3864.7,1.25273]
[1761037362733,0.7713,3864.8,3864.7,1.25273]
[1761037363451,1.23692,3864.8,3864.7,1.25273]
[1761037363746,1.23692,3864.8,3864.7,0.7871]
[1761037363943,1.23692,3864.8,3864.7,0.5599]
[1761037364143,1.23692,3864.8,3864.7,0.3321]
[1761037364945,1.23692,3864.8,3864.7,0.7871]
[1761037366450,0.89862,3864.8,3864.7,0.7871]
[1761037366851,0.89862,3864.8,3864.7,1.25273]
[1761037367151,1.23692,3864.8,3864.7,1.25273]
[1761037369952,1.23692,3864.8,3864.7,0.3321]
[1761037370455,1.23692,3864.8,3864.7,0.5599]
[1761037370955,1.23692,3864.8,3864.7,0.3321]
[1761037371254,1.23695,3864.6,3864.5,0.33515496]
[1761037371456,1.23695,3864.6,3864.5,0.00305496]
[1761037371849,1.23695,3864.6,3864.5,0.33515496]
[1761037372049,1.23695,3864.6,3864.5,0.56295496]
[1761037374859,1.23695,3864.6,3864.5,0.00305496]
[1761037375956,1.23695,3864.6,3864.5,0.33515496]
[1761037378051,1.23695,3864.6,3864.5,0.00305496]
[1761037381960,6.23695,3864.6,3864.5,0.00305496]
[1761037382152,1.23513,3863.9,3863.8,0.5508]
[1761037383051,1.23513,3863.9,3863.8,0.55342299]
[1761037383855,1.23513,3863.9,3863.8,0.00262299]
[1761037391866,1.23513,3863.9,3863.8,0.34312299]
[1761037393368,1.23513,3863.9,3863.8,0.00262299]
[1761037394169,0.449,3863.0,3862.9,0.89915]
[1761037394363,1.23524,3863.0,3862.9,0.4333]
[1761037394556,1.23524,3863.0,3862.9,0.7738]
[1761037394952,1.23524,3863.0,3862.9,0.77615265]
[1761037394953,1.23749699,3863.0,3862.9,0.77615265]
[1761037395157,1.35969699,3863.0,3862.9,0.00235265]
[1761037395360,1.23534,3862.2,3862.1,0.5508]
[1761037395563,1.16466,3862.9,3861.9,0.5508]
[1761037395564,1.23536,3862.0,3861.9,0.5508]
[1761037395766,0.7694,3862.0,3861.9,0.7738]
[1761037396073,0.449,3862.0,3861.9,0.7738]
[1761037396370,0.7694,3862.0,3861.9,0.7771484]
[1761037397155,0.7694,3862.0,3861.9,0.5541484]
[1761037397357,1.23536,3862.0,3861.9,0.7771484]
[1761037397956,0.7694,3862.0,3861.9,0.7771484]
[1761037398367,1.23536,3862.0,3861.9,0.5404484]
[1761037398566,0.7694,3862.0,3861.9,0.7655484]
[1761037398866,1.23536,3862.0,3861.9,0.7655484]
[1761037399371,0.449,3862.0,3861.9,0.7655484]
[1761037399569,1.25156,3862.0,3861.9,0.7655484]
[1761037399871,0.7856,3862.0,3861.9,0.7655484]
[1761037400257,0.449,3862.0,3861.9,0.7655484]
[1761037401171,0.91496,3862.0,3861.9,0.7655484]
[1761037401465,0.46594,3862.2,3861.9,1.2315184]
[1761037401669,9.9876,3862.5,3862.2,0.3201]
[1761037401969,0.562,3862.9,3862.4,0.3201]
[1761037402167,0.90085,3862.9,3862.8,0.5371]
[1761037402469,1.47935284,3862.9,3862.8,0.5371]
[1761037402660,1.81595284,3862.9,3862.8,0.5371]
[1761037403073,1.81595284,3862.9,3862.8,0.7622]
[1761037403269,1.23745,3862.9,3862.8,0.7622]
[1761037404871,0.90085,3862.9,3862.8,0.7622]
[1761037405171,1.23745,3862.9,3862.8,0.7622]
[1761037407971,0.435,3862.9,3862.8,0.7622]
[1761037408164,0.69309699,3863.0,3862.9,0.7743]
[1761037408473,0.90229699,3863.0,3862.9,0.7743]
[1761037409465,0.00225699,3863.0,3862.9,1.24015]
[1761037410569,0.22725699,3863.0,3862.9,1.24015]
[1761037411178,0.69309699,3863.0,3862.9,1.24015]
[1761037411573,0.00225699,3863.0,3862.9,1.24015]
[1761037411964,0.22725699,3863.0,3862.9,1.24015]
[1761037412976,0.00225699,3863.0,3862.9,1.24015]
[1761037413969,0.46809699,3863.0,3862.9,1.24015]
[1761037417773,0.00225699,3863.0,3862.9,1.24015]
[1761037418775,0.00225699,3863.0,3862.9,6.24015]
[1761037419084,1.21633,3863.9,3863.8,0.7743]
[1761037419269,1.80047884,3863.9,3863.8,0.7743]
[1761037419471,0.46577,3863.6,3863.5,0.3411]
[1761037419684,1.80051884,3863.6,3863.5,0.3411]
[1761037419983,1.80273505,3863.6,3863.5,0.3411]
[1761037420182,1.80273505,3863.6,3863.5,0.685]
[1761037420983,1.80273505,3863.6,3863.5,0.3439]
[1761037421177,1.80273505,3863.6,3863.0,0.1294]
[1761037421178,0.69082,3863.2,3863.1,0.5626]
[1761037421378,1.21642,3863.2,3863.1,0.5556]
[1761037423180,0.46584,3863.0,3862.8,0.67756]
[1761037423484,1.21644,3863.0,3862.9,0.5556]
[1761037424485,1.21644,3863.0,3862.9,0.7743]
[1761037426081,0.69084,3863.0,3862.9,1.24015]
[1761037426282,0.225,3863.0,3862.9,1.24015]
[1761037426476,0.90004,3863.0,3862.9,0.7743]
[1761037426693,1.21644,3863.0,3862.9,0.7743]
[1761037427388,1.21644,3863.0,3862.9,1.24015]
[1761037427589,0.90004,3863.0,3862.9,1.24015]
[1761037427791,0.69084,3863.0,3862.9,1.24015]
[1761037428088,0.69084,3863.0,3862.9,0.7743]
[1761037428783,0.90004,3863.0,3862.9,0.7743]
[1761037429380,1.21644,3863.0,3862.9,0.7743]
[1761037430992,0.90004,3863.0,3862.9,0.7743]
[1761037431289,0.6908,3863.3,3863.2,0.7743]
[1761037431490,1.2761167,3863.3,3863.2,0.7743]
[1761037432087,1.8017167,3863.3,3863.2,0.7743]
[1761037434293,1.4853167,3863.3,3863.2,0.7743]
[1761037435395,1.8017167,3863.3,3863.2,0.7743]
[1761037436702,1.8017167,3863.3,3863.2,0.5556]
[1761037437901,1.8017167,3863.3,3863.2,0.3439]
[1761037438101,1.24223,3863.1,3863.0,0.3414]
[1761037438389,1.8275467,3863.1,3863.0,0.212]
[1761037438594,1.8275467,3863.1,3863.0,0.5411]
[1761037438990,1.2423,3862.5,3862.3,1.86123383]
[1761037439193,0.4359,3862.4,3862.3,0.90933]
[1761037439496,0.4359,3862.4,3862.3,1.23843]
[1761037439889,0.90182,3862.4,3862.3,1.23843]
[1761037440090,1.24232,3862.4,3862.3,0.7725]
[1761037441201,0.90182,3862.4,3862.3,0.7725]
[1761037441498,1.24232,3862.4,3862.3,0.5411]
[1761037441689,1.8280259,3862.4,3862.3,0.5411]
[1761037441890,0.46595,3862.1,3862.0,0.3394]
[1761037442095,1.24235,3862.1,3862.0,0.3394]
[1761037442291,0.46594,3862.3,3862.2,0.46594]
[1761037442496,1.05769259,3862.3,3862.2,1.23844]
[1761037443003,1.05769259,3862.3,3862.2,0.7725]
[1761037443203,1.27679259,3862.3,3862.2,0.7725]
[1761037444305,1.05769259,3862.3,3862.2,1.23844]
[1761037444596,1.27679259,3862.3,3862.2,0.7725]
[1761037445002,1.49359259,3862.3,3862.2,0.7725]
[1761037445201,1.83409259,3862.3,3862.2,0.7725]
[1761037446198,1.05769259,3862.3,3862.2,0.7725]
[1761037446395,0.59175259,3862.3,3862.2,1.23844]
[1761037447307,0.68503,3862.3,3862.2,1.23844]
[1761037447507,0.68503,3862.3,3862.2,0.7725]
[1761037447800,0.68503,3862.3,3861.9,0.5444484]
[1761037447801,0.80647,3862.0,3861.9,0.5444484]
[1761037448006,1.24237,3862.0,3861.9,0.5444484]
[1761037448400,0.7764,3862.0,3861.9,0.7758484]
[1761037448596,0.68507,3862.0,3861.9,0.7758484]
[1761037449309,0.68507,3862.0,3861.9,1.2418284]
[1761037449509,1.24237,3862.0,3861.9,0.7758484]
[1761037449905,0.68507,3862.0,3861.9,0.7758484]
[1761037450605,0.46595,3862.1,3861.9,0.9127284]
[1761037450809,1.24232,3862.4,3862.3,0.7725]
[1761037451007,0.46595,3862.1,3862.0,0.3424]
[1761037451209,1.24235,3862.1,3862.0,0.212]
[1761037451707,1.24235,3862.1,3862.0,0.5411]
[1761037453409,1.24235,3862.1,3862.0,0.3291]
[1761037453715,1.24235,3862.1,3862.0,0.5411]
[1761037454205,0.90185,3862.1,3862.0,0.9029]
[1761037455314,1.24235,3862.1,3862.0,0.9029]
[1761037457502,0.68505,3862.1,3862.0,0.9029]
[1761037457817,0.68505,3862.1,3862.0,1.36887]
[1761037458005,0.2191,3862.1,3862.0,1.36887]
[1761037458211,0.67884,3862.2,3862.1,1.24315]
[1761037459021,0.2129,3862.2,3862.1,1.24315]
[1761037459315,0.46592,3862.4,3862.3,0.92433]
[1761037459518,0.67882,3862.4,3862.3,0.92433]
[1761037459706,41.72195163,3863.1,3863.0,0.137]
[1761037459707,0.2129,3863.1,3863.0,0.137]
[1761037459909,1.84189874,3863.1,3863.0,0.9142]
[1761037460810,1.84189874,3863.1,3863.0,0.7772]
[1761037461214,1.84189874,3863.1,3863.0,0.5459]
[1761037461408,1.84189874,3863.1,3863.0,0.3188]
[1761037461610,1.84189874,3863.1,3861.8,1.39530383]
[1761037461611,1.25147,3862.0,3861.7,0.3188]
[1761037461812,1.91883874,3862.0,3861.4,0.3188]
[1761037462317,0.3412,3861.4,3861.1,0.3188]
[1761037462507,1.25156,3861.2,3861.1,0.3188]
[1761037462707,1.25156,3861.2,3860.8,0.3188]
[1761037462708,0.2129,3860.9,3860.8,0.3188]
[1761037462922,0.7855,3860.9,3860.8,0.5459]
[1761037463307,0.7855,3860.9,3860.8,0.0025249]
[1761037463506,1.3755424,3860.9,3860.8,0.0025249]
[1761037464311,0.91049,3860.2,3860.1,0.3188]
[1761037464509,0.91049,3860.2,3860.1,0.5459]
[1761037464815,1.25169,3860.2,3860.1,0.5459]
[1761037465214,0.44670252,3860.2,3860.1,0.7791188]
[1761037466222,0.78790252,3860.2,3860.1,0.7791188]
[1761037466423,0.78790252,3860.2,3860.1,0.3207188]
[1761037466623,0.78790252,3860.2,3860.1,0.5478188]
[1761037466824,0.78790252,3860.2,3860.1,0.7791188]
[1761037467124,0.44670252,3860.2,3860.1,0.7791188]
[1761037467523,0.21530252,3860.2,3860.1,0.7791188]
[1761037467823,0.2218,3861.3,3861.2,0.8014]
[1761037468020,0.7806,3861.3,3861.2,0.8014]
[1761037468519,0.4509,3861.3,3861.2,0.8014]
[1761037468723,0.45412467,3861.3,3861.2,0.8014]
[1761037470024,0.78382467,3861.3,3861.2,0.8014]
[1761037471623,0.45412467,3861.3,3861.2,0.8014]
[1761037472829,0.78382467,3861.3,3861.2,0.8014]
[1761037473023,1.24987467,3861.3,3861.2,0.8014]
[1761037477526,0.92017467,3861.3,3861.2,0.8014]
[1761037478433,0.91697,3861.1,3861.0,0.9334]
[1761037478733,0.68787,3861.1,3861.0,0.9334]
[1761037483533,0.00322467,3861.3,3861.2,0.46606]
[1761037483838,0.69107467,3861.3,3861.2,0.8014]
[1761037484030,0.22502467,3861.3,3861.2,1.26746]
[1761037486035,0.69107467,3861.3,3861.2,0.8014]
[1761037486240,0.92017467,3861.3,3861.2,0.8014]
[1761037487535,0.00322467,3861.3,3861.2,1.26746]
[1761037487835,0.69107467,3861.3,3861.2,0.8014]
[1761037488037,1.24987467,3861.3,3861.2,0.8014]
[1761037490627,1.84101653,3861.3,3861.2,0.8014]
[1761037490832,0.92017467,3861.3,3861.2,0.8014]
[1761037491047,0.69107467,3861.3,3861.2,0.8014]
[1761037491430,1.28282272,3861.3,3861.2,0.8014]
[1761037492041,1.51192272,3861.3,3861.2,0.8014]
[1761037492232,1.84162272,3861.3,3861.2,0.3468]
[1761037492434,1.24667,3861.1,3861.0,0.3468]
[1761037492646,1.83841805,3861.1,3861.0,0.3468]
[1761037492947,1.83841805,3861.1,3861.0,0.578]
[1761037493148,1.83841805,3861.1,3861.0,0.3468]
[1761037495834,1.83841805,3861.1,3861.0,0.578]
[1761037497137,1.50871805,3861.1,3861.0,0.9334]
[1761037497642,1.83841805,3861.1,3861.0,0.9334]
[1761037498441,1.26123,3860.7,3860.6,0.7883]
[1761037499040,1.51103795,3860.7,3860.6,0.7883]
[1761037499438,1.85093795,3860.7,3860.6,0.5574]
[1761037501452,1.51103795,3860.7,3860.6,0.7883]
[1761037501652,1.05583795,3860.7,3860.6,0.7883]
[1761037501951,1.27963795,3860.7,3860.6,0.7883]
[1761037502352,1.26127,3860.4,3860.3,0.5574]
[1761037503053,1.26127,3860.4,3860.3,0.7883]
[1761037503443,1.26127,3860.4,3860.1,0.0019188]
[1761037503444,1.3843217,3860.4,3860.1,0.0019188]
[1761037503648,1.26128,3860.2,3860.1,0.2261188]
[1761037503953,1.85042902,3860.2,3860.1,0.2261188]
[1761037504152,1.85042902,3860.2,3860.1,0.5593188]
[1761037504749,1.85042902,3860.2,3860.1,0.0019188]
[1761037506148,1.85042902,3860.2,3860.1,0.3351188]
[1761037507152,1.85042902,3860.2,3860.1,0.5593188]
[1761037508154,6.85042902,3860.2,3860.1,0.0019188]
[1761037508350,0.2238,3859.7,3859.6,0.2242]
[1761037508552,0.2238,3859.7,3859.6,0.92135]
[1761037508955,0.2238,3859.7,3859.6,1.25455]
[1761037509250,0.2238,3859.9,3859.8,0.69043]
[1761037509457,0.2238,3859.9,3859.8,0.92133]
[1761037509754,1.26127,3860.3,3860.2,0.2242]
[1761037509952,1.38274782,3860.3,3860.2,1.25448]
[1761037510143,0.81144782,3860.3,3860.2,1.25448]
[1761037510348,1.26123,3860.6,3860.5,0.7883]
[1761037510659,1.84884558,3860.6,3860.5,0.7883]
[1761037511161,1.38271558,3860.6,3860.5,0.7883]
[1761037511361,1.04281558,3860.6,3860.5,1.39375]
[1761037511657,0.58761558,3860.6,3860.5,1.39375]
[1761037511853,0.79832467,3861.3,3861.2,0.7883]
[1761037512160,0.00322467,3861.3,3861.2,0.7883]
[1761037514763,0.00322467,3861.3,3861.2,5.7883]
[1761037515558,0.00322467,3861.3,3861.2,6.00066611]
[1761037515958,0.7951,3862.5,3862.4,0.2242]
[1761037516159,0.7951,3862.5,3862.4,0.7883]
[1761037516363,0.4552,3862.5,3862.4,0.7883]
[1761037516561,1.48211471,3863.1,3862.7,0.4551]
[1761037516761,1.26093,3863.1,3863.0,0.5574]
[1761037516966,0.7951,3862.6,3862.5,0.2242]
[1761037517169,0.7951,3862.6,3862.5,0.22697612]
[1761037517460,5.7951,3862.6,3862.5,0.00277612]
[1761037517768,0.4551,3861.2,3861.1,0.7561]
[1761037517966,0.7924,3861.2,3861.1,0.7561]
[1761037518167,0.2255,3861.2,3861.1,0.7561]
[1761037518357,0.2255,3861.5,3861.2,0.3224]
[1761037518560,0.2255,3861.5,3861.4,0.7561]
[1761037518758,0.4551,3861.5,3861.4,0.7561]
[1761037519061,0.2255,3861.5,3861.4,0.7561]
[1761037519260,0.7924,3861.5,3861.4,0.3224]
[1761037519461,0.7924,3861.5,3861.4,0.7561]
[1761037519462,0.2255,3861.5,3861.4,0.7561]
[1761037519668,1.2584,3861.8,3861.7,0.7561]
[1761037519963,0.4551,3861.8,3861.7,0.7561]
[1761037520162,0.7924,3861.8,3861.7,0.7561]
[1761037520558,0.7924,3861.6,3861.5,0.3224]
[1761037521460,1.25838,3861.9,3861.8,0.4337]
[1761037521661,1.25838,3861.9,3861.8,0.7561]
[1761037522160,0.4551,3861.9,3861.8,0.7561]
[1761037522665,0.7924,3861.9,3861.8,0.7561]
[1761037523670,5.552,3862.0,3861.9,0.3224]
[1761037523861,6.13682067,3862.0,3861.9,0.7561]
[1761037524257,5.7775,3862.0,3861.9,0.7561]
[1761037524468,0.3373,3862.3,3862.2,0.7561]
[1761037524469,0.69144,3862.3,3862.2,0.7561]
[1761037524669,0.2255,3862.3,3862.2,0.7561]
[1761037525764,0.69143,3862.3,3862.2,0.7561]
[1761037525969,0.92103,3862.3,3862.2,0.7561]
[1761037526159,0.4551,3862.3,3862.2,0.7561]
[1761037527870,0.4375,3862.9,3862.8,0.442]
[1761037528059,0.5876216,3863.1,3863.0,0.9243]
[1761037528264,0.00247876,3863.1,3863.0,0.9243]
[1761037528464,0.75897876,3863.1,3863.0,0.3461]
[1761037528661,0.75897876,3863.1,3862.5,0.1362]
[1761037528662,0.7565,3862.7,3862.6,0.442]
[1761037528870,0.4375,3862.7,3862.6,0.442]
[1761037529079,0.21,3862.7,3862.6,0.90789]
[1761037529369,0.21,3862.7,3862.6,1.25399]
[1761037529570,0.67830876,3863.1,3863.0,0.9243]
[1761037529759,0.75897876,3863.1,3862.5,0.1362]
[1761037529965,1.22238,3862.7,3862.6,0.3461]
[1761037530160,0.319,3862.4,3862.2,0.3461]
[1761037530364,0.90343,3862.3,3862.2,0.7881]
[1761037530664,1.22243,3862.3,3862.2,0.7881]
[1761037533070,0.90343,3862.3,3862.2,0.7881]
[1761037533274,0.4375,3862.3,3862.2,1.25404]
[1761037533467,0.21,3862.3,3862.2,0.7881]
[1761037533764,0.67593,3862.3,3862.2,0.7881]
[1761037533965,0.90343,3862.3,3862.2,0.7881]
[1761037534167,1.22243,3862.3,3862.2,0.7881]
[1761037534672,1.22243,3862.3,3862.2,0.3461]
[1761037534872,1.22245,3862.1,3862.0,0.5702]
[1761037535362,1.22245,3862.1,3862.0,0.9243]
[1761037535568,0.4375,3862.1,3862.0,0.9243]
[1761037535866,0.90345,3862.1,3862.0,0.9243]
[1761037537260,1.22245,3862.1,3862.0,0.9243]
[1761037538273,0.67595,3862.1,3862.0,0.9243]
[1761037538473,0.90345,3862.1,3862.0,0.9243]
[1761037539072,0.46594,3862.2,3862.0,0.5782]
[1761037539274,0.67594,3862.2,3862.1,0.7881]
[1761037540671,1.22244,3862.2,3862.1,0.5702]
[1761037541279,1.809423,3862.2,3862.1,0.5702]
[1761037543280,1.809423,3862.2,3862.1,0.7881]
[1761037544973,1.262923,3862.2,3862.1,0.7881]
[1761037545375,1.490423,3862.2,3862.1,0.7881]
[1761037545775,1.809423,3862.2,3862.1,0.7881]
[1761037546582,1.490423,3862.2,3862.1,0.7881]
[1761037546881,1.809423,3862.2,3862.1,0.7881]
[1761037549684,1.490423,3862.2,3862.1,0.7881]
[1761037550084,1.809423,3862.2,3862.1,0.7881]
[1761037550684,1.490423,3862.2,3862.1,0.7881]
[1761037551887,1.490423,3862.2,3862.1,1.25405]
[1761037552085,1.262923,3862.2,3862.1,1.25405]
[1761037552384,0.586983,3862.2,3862.1,1.25405]
[1761037553477,0.796983,3862.2,3862.1,1.25405]
[1761037553878,1.262923,3862.2,3862.1,1.25405]
[1761037555082,1.809423,3862.2,3862.1,0.7881]
[1761037555281,1.809423,3862.2,3861.5,1.52750383]
[1761037555489,0.90348,3862.0,3861.9,1.03617]
[1761037555675,1.49015245,3862.0,3861.9,0.7881]
[1761037555989,1.49015245,3862.0,3861.5,0.2241]
[1761037555990,1.22251,3861.6,3861.5,0.2241]
[1761037556185,0.46605,3861.3,3861.2,0.0024611]
[1761037556378,1.22255,3861.3,3861.2,0.7905611]
[1761037556579,0.90355,3861.3,3861.2,0.7905611]
[1761037556886,0.90355,3861.3,3861.2,1.2566211]
[1761037557085,0.4375,3861.3,3861.2,1.2566211]
[1761037557286,0.67604,3861.5,3861.4,1.25414]
[1761037557477,1.4898799,3861.5,3861.4,1.25414]
[1761037557675,1.8278799,3861.5,3861.4,1.25414]
[1761037558890,1.0523799,3861.5,3861.4,1.25414]
[1761037560089,0.5863399,3861.5,3861.4,1.25414]
[1761037560587,0.338,3861.8,3861.7,1.21879]
[1761037560588,0.46599,3861.8,3861.7,1.21879]
[1761037560780,0.67989,3861.8,3861.7,0.4275]
[1761037560981,1.26623694,3861.8,3861.7,0.4275]
[1761037561189,1.81913694,3861.8,3861.7,0.4275]
[1761037561487,1.81913694,3861.8,3861.7,0.7528]
[1761037561688,1.81913694,3861.8,3861.7,1.2188]
[1761037561887,1.48113694,3861.8,3861.7,1.2188]
[1761037562481,1.26623694,3861.8,3861.7,1.2188]
[1761037562780,0.58634694,3861.8,3861.7,1.2188]
[1761037562981,0.46593,3862.3,3862.2,0.3253]
[1761037563176,0.91626935,3862.4,3862.2,0.4275]
[1761037563490,0.80022227,3862.3,3862.2,0.89344]
[1761037563791,0.58632227,3862.3,3862.2,1.21874]
[1761037563985,1.26615227,3862.3,3862.2,1.21874]
[1761037564189,1.23277,3862.0,3861.9,0.3253]
[1761037564384,0.7668,3861.7,3861.6,0.4275]
[1761037564592,1.23281,3861.7,3861.6,0.4275]
[1761037564783,1.81915888,3861.7,3861.6,0.4275]
[1761037564981,1.81915888,3861.7,3861.6,0.7528]
[1761037565487,1.81915888,3861.7,3861.3,0.3253]
[1761037565488,1.23285,3861.4,3861.3,0.3253]
[1761037565684,1.23285,3861.4,3861.3,0.5397]
[1761037566087,1.23285,3861.4,3861.3,0.7528]
[1761037566792,1.23285,3861.4,3861.3,1.21885]
[1761037567094,1.23285,3861.4,3861.3,0.7528]
[1761037567286,1.23285,3861.3,3861.2,0.0024611]
[1761037567490,1.81910904,3861.3,3861.2,0.0024611]
[1761037569190,1.81910904,3861.3,3861.2,0.5421611]
[1761037569490,1.81910904,3861.3,3861.2,0.0024611]
[1761037569997,1.81910904,3861.3,3861.2,0.5421611]
[1761037571196,1.81910904,3861.3,3861.2,0.7552611]
[1761037571394,1.81910904,3861.3,3861.2,0.0024611]
[1761037573298,1.23294,3860.6,3860.5,0.5397]
[1761037573499,1.23294,3860.6,3860.0,0.5932]
[1761037573500,1.23299,3860.2,3860.1,0.7528]
[1761037573700,1.23299,3860.2,3860.1,0.5397]
[1761037574187,1.23546065,3860.2,3860.1,0.54265593]
[1761037574584,0.00247065,3860.2,3860.1,0.75575593]
[1761037575396,0.00247065,3860.2,3860.1,1.22195593]
[1761037580101,0.00247065,3860.2,3860.1,6.22195593]
[1761037585805,0.00247065,3860.2,3860.1,1.22195593]
[1761037586809,0.67789,3861.0,3860.9,1.21099]
[1761037587009,0.46609,3861.0,3860.9,1.21099]
[1761037587910,0.46863135,3861.0,3860.9,1.21099]
[1761037588408,0.00254135,3861.0,3860.9,1.21099]
[1761037589310,0.46862135,3861.0,3860.9,1.21099]
[1761037589514,1.25142135,3861.0,3860.9,0.5295]
[1761037589706,1.25142135,3861.0,3860.9,0.3195]
[1761037590014,1.24898,3860.2,3860.1,0.45095593]
[1761037590517,0.69698,3860.2,3860.1,1.23454593]
[1761037590713,0.69698,3860.2,3860.1,0.76835593]
[1761037591712,0.46617,3860.3,3860.1,0.91714593]
[1761037591914,0.46617,3860.3,3860.2,1.23158]
[1761037592414,0.46617,3860.3,3860.2,0.7654]
[1761037592616,0.69697,3860.3,3860.2,0.7654]
[1761037593215,1.24897,3860.3,3860.2,0.7654]
[1761037593411,1.16535,3860.6,3860.1,0.32035593]
[1761037593412,1.02608,3860.2,3860.1,0.32035593]
[1761037593715,1.24898,3860.2,3860.1,0.32035593]
[1761037593914,1.24898,3860.2,3860.1,0.55255593]
[1761037596016,1.24898,3860.2,3860.1,0.32035593]
[1761037596315,1.83621544,3860.2,3860.1,0.00295593]
[1761037596515,0.3291,3860.1,3859.2,0.3174]
[1761037596705,0.4537,3859.3,3859.2,1.2317]
[1761037597306,0.2308,3859.3,3859.2,1.2317]
[1761037597509,0.46625,3859.7,3859.6,0.2322]
[1761037597717,1.28426735,3859.7,3859.6,0.7654]
[1761037598418,1.83626735,3859.7,3859.6,0.7654]
[1761037599218,0.69709,3859.3,3859.2,0.45041357]
[1761037599416,0.91999,3859.3,3859.2,0.45041357]
[1761037599816,0.2308,3859.3,3859.2,0.76781357]
[1761037600713,0.46628,3859.4,3859.2,0.91671357]
[1761037600913,0.69708,3859.4,3859.3,0.7654]
[1761037601114,0.46628,3859.4,3859.3,0.7654]
[1761037601620,0.69708,3859.4,3859.3,0.7654]
[1761037602813,0.91998,3859.4,3859.3,0.7654]
[1761037603013,0.69708,3859.4,3859.3,0.7654]
[1761037603620,0.91998,3859.4,3859.3,0.7654]
[1761037605923,1.24908,3859.4,3859.3,0.7654]
[1761037606722,1.24908,3859.4,3859.3,0.5496]
[1761037607824,0.7828,3859.3,3859.2,0.00241357]
[1761037610025,0.7828,3859.3,3859.2,0.31981357]
[1761037610220,0.7828,3859.3,3859.2,0.55201357]
[1761037610721,1.24909,3859.3,3859.2,0.55201357]
[1761037611527,1.24909,3859.3,3859.2,0.00241357]
[1761037612725,6.24909,3859.3,3859.2,0.00241357]
[1761037612913,0.46636,3858.7,3858.6,0.3174]
[1761037613220,1.24916,3858.7,3858.6,0.3174]
[1761037613922,1.24916,3858.7,3858.6,0.76838318]
[1761037615027,0.7828,3858.7,3858.6,0.76838318]
[1761037615228,1.24916,3858.7,3858.6,0.00298318]
[1761037617624,1.24916,3858.7,3858.6,0.56108318]
[1761037617927,0.92006,3858.7,3858.6,0.78888318]
[1761037618623,1.23666,3858.7,3858.6,0.00298318]
[1761037619028,1.23666,3858.7,3858.6,0.32968318]
[1761037619518,1.23666,3858.7,3858.6,0.56108318]
[1761037620131,0.92006,3858.7,3858.6,0.78888318]
[1761037620320,1.23666,3858.7,3858.6,0.32968318]
[1761037620629,1.23666,3858.7,3858.6,0.56108318]
[1761037622132,1.23666,3858.7,3858.6,0.00298318]
[1761037622932,1.23666,3858.7,3858.6,0.32968318]
[1761037623732,1.23666,3858.7,3858.6,0.56108318]
[1761037624024,0.92006,3858.7,3858.6,0.78888318]